[Event "HUN-ch Rapid 2018"]
[Site "Ajka"]
[Date "2018.07.21"]
[Round "9"]
[White "Buzas, Bertalan"]
[Black "Kiss, Pal"]
[Result "1/2-1/2"]
[ECO "A07"]
[WhiteElo "2133"]
[BlackElo "2356"]
[Annotator "NA RC"]
[PlyCount "76"]
[EventDate "2018.07.20"]
[EventType "swiss"]
[EventCountry "HUN"]
[SourceTitle "playchess.com"]
[Source "ChessBase"]
[SourceQuality "1"]
[TimeControl "1200+5"]

1. Nf3 {[%emt 0:00:02]} d5 {[%emt 0:00:02]} 2. g3 {[%emt 0:00:02]} Nf6 {[%emt 0:00:03]} 3. Bg2 {[%emt 0:00:02]} c6 {[%emt 0:00:02]} 4. O-O {[%emt 0:00:02]} Bg4 {[%emt 0:00:02]} 5. d4 {[%emt 0:00:02]} e6 {[%emt 0:00:07]} 6. Nbd2 {[%emt 0:00:01]} Be7 {[%emt 0:00:12]} 7. Re1 {[%emt 0:00:06]} O-O {[%emt 0:00:14]} 8. e4 {[%emt 0:00:01]} Nbd7 {[%emt 0:00:26]} 9. c3 {[%emt 0:00:09]} Bh5 {[%emt 0:00:34]} 10. Qb3 {[%emt 0:00:02]} Qb6 {[%emt 0:00:15]} 11. h3 {[%emt 0:00:22]} Bg6 {[%emt 0:01:24]} 12. exd5 {[%emt 0:00:24]} cxd5 {[%emt 0:00:18]} 13. Ne5 {[%emt 0:00:21]} Nxe5 {[%emt 0:01:42]} 14. dxe5 {[%emt 0:00:17]} Nd7 {[%emt 0:00:10]} 15. Nf3 {[%emt 0:00:32]} Nc5 {[%emt 0:01:04]} 16. Qxb6 {[%emt 0:00:26]} axb6 {[%emt 0:00:01]} 17. Be3 {[%emt 0:01:42]} Rfc8 {[%emt 0:00:26]} 18. Bf1 {[%emt 0:00:50]} Na4 {[%emt 0:01:36]} 19. Re2 {[%emt 0:01:16]} Bc5 {[%emt 0:02:41]} 20. Bd4 {[%emt 0:03:00]} Be4 21. Ne1 Bxd4 {[%emt 0:01:53]} 22. cxd4 {[%emt 0:00:07]} b5 {[%emt 0:00:06]} 23. a3 {[%emt 0:02:19]} b4 {[%emt 0:00:52]} 24. f3 {[%emt 0:00:05]} Bg6 25. Rd2 {[%emt 0:00:38]} Nb6 {[%emt 0:00:35]} 26. Rad1 {[%emt 0:02:48]} Nc4 {[%emt 0:01:34]} 27. Bxc4 {[%emt 0:02:04]} Rxc4 {[%emt 0:00:10]} 28. axb4 {[%emt 0:02:31]} Rxb4 {[%emt 0:00:33]} 29. Kf2 {[%emt 0:00:05]} Ra2 30. Rc1 h5 {[%emt 0:00:38]} 31. Ke3 {[%emt 0:01:42]} Rbxb2 {[%emt 0:00:23]} 32. Rxb2 Rxb2 33. h4 {[%emt 0:00:24]} Bf5 {[%emt 0:01:58]} 34. Kf4 {[%emt 0:00:08]} Rd2 {[%emt 0:02:00]} 35. Ke3 {[%emt 0:00:09]} Rh2 {[%emt 0:00:14]} 36. Rc8+ {[%emt 0:00:01]} Kh7 {[%emt 0:00:01]} 37. Rc7 {[%emt 0:00:01]} Bg6 {[%emt 0:00:21]} 38. Rxb7 {[%emt 0:00:04]} Ra2 {[%emt 0:00:03]} 1/2-1/2

[Event "HUN-ch Rapid 2018"]
[Site "Ajka"]
[Date "2018.07.21"]
[Round "9"]
[White "Sarok, Peter"]
[Black "Csonka, Balazs"]
[Result "0-1"]
[ECO "A13"]
[WhiteElo "2105"]
[BlackElo "2311"]
[Annotator "NA RC"]
[PlyCount "64"]
[EventDate "2018.07.20"]
[EventType "swiss"]
[EventCountry "HUN"]
[SourceTitle "playchess.com"]
[Source "ChessBase"]
[SourceQuality "1"]
[TimeControl "1200+5"]

1. c4 {[%emt 0:00:07]} e6 {[%emt 0:01:41]} 2. g3 {[%emt 0:00:03]} d5 {[%emt 0:00:03]} 3. Bg2 {[%emt 0:00:01]} Nf6 {[%emt 0:00:04]} 4. Nf3 {[%emt 0:00:01]} dxc4 {[%emt 0:02:38]} 5. Qa4+ {[%emt 0:00:12]} c6 {[%emt 0:00:10]} 6. Qxc4 {[%emt 0:00:04]} b5 {[%emt 0:00:03]} 7. Qc2 {[%emt 0:00:07]} Bb7 {[%emt 0:00:02]} 8. d4 {[%emt 0:00:18]} Nbd7 {[%emt 0:00:29]} 9. O-O {[%emt 0:00:34]} c5 {[%emt 0:01:04]} 10. Rd1 {[%emt 0:00:23]} Rc8 {[%emt 0:00:26]} 11. a4 {[%emt 0:02:28]} cxd4 {[%emt 0:06:30]} 12. Qd3 {[%emt 0:00:32]} Be4 {[%emt 0:01:32]} 13. Qxb5 {[%emt 0:00:22]} Rc5 {[%emt 0:00:03]} 14. Qa6 {[%emt 0:00:40]} Rc6 {[%emt 0:01:05]} 15. Qb5 {[%emt 0:02:13]} Rc5 {[%emt 0:01:04]} 16. Qa6 {[%emt 0:00:19]} Nb8 {[%emt 0:01:10]} 17. Qxa7 {[%emt 0:00:44]} Nc6 {[%emt 0:00:32]} 18. Qa6 {[%emt 0:00:43]} Nb4 {[%emt 0:00:29]} 19. Qa7 {[%emt 0:00:42]} Ra5 {[%emt 0:00:16]} 20. Qxd4 {[%emt 0:00:41]} Rd5 {[%emt 0:00:02]} 21. Qxd5 {[%emt 0:00:14]} exd5 {[%emt 0:00:50]} 22. Nc3 {[%emt 0:00:15]} Bc2 {[%emt 0:00:17]} 23. Rf1 {[%emt 0:00:37]} Bc5 {[%emt 0:00:11]} 24. Bg5 {[%emt 0:00:20]} d4 {[%emt 0:00:31]} 25. Nb5 {[%emt 0:00:15]} O-O {[%emt 0:00:11]} 26. Rfc1 {[%emt 0:00:25]} d3 {[%emt 0:00:11]} 27. exd3 {[%emt 0:00:33]} Bxf2+ {[%emt 0:00:02]} 28. Kxf2 {[%emt 0:00:15]} Nxd3+ {[%emt 0:00:02]} 29. Kf1 {[%emt 0:00:15]} Nxc1 {[%emt 0:00:07]} 30. Rxc1 {[%emt 0:00:04]} Qd3+ {[%emt 0:00:23]} 31. Kg1 {[%emt 0:00:28]} Bxa4 {[%emt 0:00:05]} 32. Nc3 {[%emt 0:01:08]} Bc6 {[%emt 0:00:03]} 0-1

[Event "HUN-ch Rapid 2018"]
[Site "Ajka"]
[Date "2018.07.21"]
[Round "9"]
[White "Szukics, Adam"]
[Black "Bagi, Mate"]
[Result "0-1"]
[ECO "A43"]
[WhiteElo "2010"]
[BlackElo "2394"]
[Annotator "NA RC"]
[PlyCount "78"]
[EventDate "2018.07.20"]
[EventType "swiss"]
[EventCountry "HUN"]
[SourceTitle "playchess.com"]
[Source "ChessBase"]
[SourceQuality "1"]
[TimeControl "1200+5"]

1. d4 {[%emt 0:00:08]} Nf6 {[%emt 0:00:03]} 2. Nf3 {[%emt 0:00:02]} c5 {[%emt 0:00:07]} 3. d5 {[%emt 0:00:33]} b5 {[%emt 0:00:02]} 4. Bg5 {[%emt 0:00:55]} Qb6 {[%emt 0:00:09]} 5. c3 {[%emt 0:01:30]} a6 {[%emt 0:01:31]} 6. g3 {[%emt 0:01:08]} Bb7 {[%emt 0:01:08]} 7. Bxf6 {[%emt 0:00:03]} Qxf6 {[%emt 0:00:21]} 8. Bg2 {[%emt 0:00:36]} g6 {[%emt 0:02:39]} 9. O-O {[%emt 0:00:29]} Bg7 {[%emt 0:00:17]} 10. e4 {[%emt 0:00:07]} d6 {[%emt 0:00:10]} 11. Qe2 {[%emt 0:01:09]} O-O {[%emt 0:00:18]} 12. a4 {[%emt 0:00:54]} e6 {[%emt 0:01:20]} 13. Rd1 {[%emt 0:02:39]} exd5 {[%emt 0:00:29]} 14. exd5 {[%emt 0:00:02]} b4 {[%emt 0:01:10]} 15. a5 {[%emt 0:00:33]} Nd7 {[%emt 0:00:13]} 16. Ra4 {[%emt 0:00:22]} Rfe8 {[%emt 0:00:20]} 17. Qf1 {[%emt 0:00:01]} Rab8 {[%emt 0:01:36]} 18. cxb4 {[%emt 0:01:39]} Qxb2 {[%emt 0:00:42]} 19. bxc5 {[%emt 0:02:29]} Nxc5 {[%emt 0:00:06]} 20. Rc4 {[%emt 0:00:01]} Qa2 {[%emt 0:01:16]} 21. Nd4 {[%emt 0:00:54]} Bxd4 {[%emt 0:00:34]} 22. Rcxd4 {[%emt 0:00:19]} Qxa5 {[%emt 0:00:06]} 23. Nd2 {[%emt 0:00:13]} Qc7 {[%emt 0:00:12]} 24. Qc4 {[%emt 0:02:45]} Qd7 {[%emt 0:01:16]} 25. Qc3 {[%emt 0:00:32]} Rbc8 {[%emt 0:01:39]} 26. Qb2 {[%emt 0:00:19]} a5 {[%emt 0:00:35]} 27. Nc4 {[%emt 0:00:37]} Qd8 {[%emt 0:00:04]} 28. Bh3 {[%emt 0:00:37]} Rb8 {[%emt 0:00:13]} 29. Qc3 {[%emt 0:00:20]} a4 {[%emt 0:00:18]} 30. Ne3 {[%emt 0:00:01]} h5 {[%emt 0:01:42]} 31. Ng2 {[%emt 0:00:15]} Bc8 {[%emt 0:00:12]} 32. Bxc8 {[%emt 0:00:03]} Qxc8 {[%emt 0:00:02]} 33. Nf4 {[%emt 0:00:18]} Qf5 {[%emt 0:00:13]} 34. Rc4 {[%emt 0:00:06]} Rb1 {[%emt 0:00:18]} 35. Rxb1 {[%emt 0:00:06]} Qxb1+ {[%emt 0:00:01]} 36. Kg2 {[%emt 0:00:01]} Re1 {[%emt 0:00:40]} 37. Nd3 {[%emt 0:00:11]} Rg1+ {[%emt 0:00:10]} 38. Kh3 {[%emt 0:00:01]} Qxd3 {[%emt 0:00:05]} 39. Rxc5 {[%emt 0:00:04]} Qf5+ {[%emt 0:00:03]} 0-1

[Event "HUN-ch Rapid 2018"]
[Site "Ajka"]
[Date "2018.07.21"]
[Round "10"]
[White "Kiss, Pal"]
[Black "Sarok, Peter"]
[Result "1-0"]
[ECO "D30"]
[WhiteElo "2356"]
[BlackElo "2105"]
[Annotator "NA"]
[PlyCount "57"]
[EventDate "2018.07.20"]
[EventType "swiss"]
[EventCountry "HUN"]
[SourceTitle "playchess.com"]
[Source "ChessBase"]
[SourceQuality "1"]
[TimeControl "1200+5"]

1. d4 {[%emt 0:00:03]} d5 {[%emt 0:00:02]} 2. c4 {[%emt 0:00:02]} e6 {[%emt 0:00:01]} 3. Nf3 {[%emt 0:00:02]} c6 {[%emt 0:00:03]} 4. Qc2 {[%emt 0:00:01]} Nf6 {[%emt 0:00:08]} 5. g3 {[%emt 0:00:06]} Nbd7 {[%emt 0:00:05]} 6. Bg2 {[%emt 0:00:02]} Ne4 {[%emt 0:00:04]} 7. O-O {[%emt 0:00:04]} Bd6 {[%emt 0:00:17]} 8. Nbd2 {[%emt 0:00:25]} f5 {[%emt 0:00:02]} 9. Ne1 {[%emt 0:00:14]} O-O {[%emt 0:00:32]} 10. Nd3 {[%emt 0:00:04]} Ndf6 {[%emt 0:00:51]} 11. Nf3 {[%emt 0:00:06]} Bd7 {[%emt 0:02:01]} 12. Bf4 {[%emt 0:00:06]} Be7 {[%emt 0:01:12]} 13. c5 {[%emt 0:01:19]} h6 {[%emt 0:00:07]} 14. Nfe5 {[%emt 0:00:56]} Be8 {[%emt 0:01:01]} 15. f3 {[%emt 0:01:08]} Ng5 {[%emt 0:00:08]} 16. b4 {[%emt 0:00:37]} a6 {[%emt 0:00:20]} 17. a4 {[%emt 0:00:02]} Nf7 {[%emt 0:00:12]} 18. Ng6 {[%emt 0:00:13]} Nh5 {[%emt 0:00:27]} 19. Nxf8 {[%emt 0:00:56]} Kxf8 {[%emt 0:00:09]} 20. Be5 {[%emt 0:00:50]} Nf6 {[%emt 0:00:19]} 21. Nf4 {[%emt 0:01:04]} Qd7 {[%emt 0:01:32]} 22. Ng6+ {[%emt 0:02:30]} Kg8 {[%emt 0:00:02]} 23. b5 {[%emt 0:01:30]} axb5 {[%emt 0:00:15]} 24. axb5 {[%emt 0:00:02]} Rxa1 {[%emt 0:00:02]} 25. Rxa1 {[%emt 0:00:10]} cxb5 {[%emt 0:00:04]} 26. Ra7 {[%emt 0:00:58]} Nxe5 {[%emt 0:00:36]} 27. Nxe5 {[%emt 0:00:06]} Qc8 {[%emt 0:01:04]} 28. c6 {[%emt 0:00:53]} Bd6 {[%emt 0:01:03]} 29. Rxb7 {[%emt 0:00:17]} 1-0

[Event "HUN-ch Rapid 2018"]
[Site "Ajka"]
[Date "2018.07.21"]
[Round "10"]
[White "Hoang, Thanh Trang"]
[Black "Galyas, Miklos"]
[Result "0-1"]
[ECO "D00"]
[WhiteElo "2351"]
[BlackElo "2382"]
[Annotator "RC"]
[PlyCount "188"]
[EventDate "2018.07.20"]
[EventType "swiss"]
[EventCountry "HUN"]
[SourceTitle "playchess.com"]
[Source "ChessBase"]
[SourceQuality "1"]
[TimeControl "1200+5"]

1. d4 {[%emt 0:00:03]} d5 {[%emt 0:00:00]} 2. Bf4 {[%emt 0:00:12]} Nf6 {[%emt 0:00:01]} 3. e3 {[%emt 0:00:02]} c5 {[%emt 0:00:01]} 4. Nf3 {[%emt 0:00:05]} Nc6 {[%emt 0:00:06]} 5. c3 {[%emt 0:00:02]} Qb6 {[%emt 0:00:04]} 6. Qc2 {[%emt 0:00:07]} g6 {[%emt 0:00:30]} 7. Nbd2 {[%emt 0:00:51]} Bg7 {[%emt 0:00:32]} 8. Be2 {[%emt 0:01:49]} O-O {[%emt 0:00:06]} 9. O-O {[%emt 0:00:18]} Bf5 {[%emt 0:00:02]} 10. dxc5 {[%emt 0:00:13]} Qxc5 {[%emt 0:00:02]} 11. Qb3 {[%emt 0:00:16]} Ne4 {[%emt 0:01:48]} 12. Nxe4 {[%emt 0:00:35]} Bxe4 {[%emt 0:00:03]} 13. Bg3 {[%emt 0:00:19]} Na5 {[%emt 0:01:54]} 14. Qb5 {[%emt 0:01:48]} Qxb5 {[%emt 0:00:05]} 15. Bxb5 {[%emt 0:00:02]} a6 {[%emt 0:00:21]} 16. Be2 {[%emt 0:00:10]} b5 {[%emt 0:00:54]} 17. Nd2 {[%emt 0:00:14]} Bf5 {[%emt 0:00:13]} 18. Bf3 {[%emt 0:00:12]} Rad8 {[%emt 0:00:41]} 19. Bc7 {[%emt 0:00:06]} Nc4 {[%emt 0:00:24]} 20. Nxc4 {[%emt 0:00:33]} bxc4 {[%emt 0:01:03]} 21. Bxd8 {[%emt 0:00:04]} Rxd8 {[%emt 0:00:01]} 22. Rfd1 {[%emt 0:00:16]} Bd3 {[%emt 0:00:09]} 23. Rd2 {[%emt 0:00:08]} e5 {[%emt 0:00:31]} 24. Be2 {[%emt 0:04:12]} e4 {[%emt 0:00:02]} 25. f3 {[%emt 0:00:11]} f5 {[%emt 0:00:25]} 26. fxe4 {[%emt 0:00:22]} dxe4 {[%emt 0:00:53]} 27. Bxd3 {[%emt 0:00:16]} cxd3 {[%emt 0:00:28]} 28. g3 {[%emt 0:00:08]} Bf8 {[%emt 0:00:30]} 29. Kf2 {[%emt 0:00:27]} g5 {[%emt 0:00:15]} 30. Rc1 {[%emt 0:00:16]} Rc8 {[%emt 0:01:33]} 31. Rdd1 {[%emt 0:00:42]} f4 {[%emt 0:00:47]} 32. gxf4 {[%emt 0:00:19]} gxf4 {[%emt 0:00:01]} 33. Rg1+ {[%emt 0:00:20]} Kh8 {[%emt 0:00:09]} 34. Rg4 {[%emt 0:00:10]} fxe3+ {[%emt 0:00:03]} 35. Kxe3 {[%emt 0:00:31]} Bh6+ {[%emt 0:00:01]} 36. Kxe4 {[%emt 0:00:02]} Bxc1 {[%emt 0:00:02]} 37. Kxd3 {[%emt 0:00:15]} Bxb2 {[%emt 0:00:01]} 38. c4 {[%emt 0:00:06]} Bg7 {[%emt 0:00:13]} 39. Re4 {[%emt 0:00:18]} Kg8 {[%emt 0:00:25]} 40. Re6 {[%emt 0:00:05]} a5 {[%emt 0:00:54]} 41. Rb6 {[%emt 0:00:41]} Rd8+ {[%emt 0:00:53]} 42. Kc2 {[%emt 0:00:08]} Bf8 {[%emt 0:00:25]} 43. Rb5 {[%emt 0:00:19]} a4 {[%emt 0:00:03]} 44. Ra5 {[%emt 0:00:20]} a3 {[%emt 0:00:07]} 45. c5 {[%emt 0:00:27]} Rd5 {[%emt 0:01:15]} 46. Rxa3 {[%emt 0:00:04]} Rxc5+ {[%emt 0:00:03]} 47. Rc3 {[%emt 0:00:08]} Rh5 {[%emt 0:00:02]} 48. h3 {[%emt 0:00:02]} Kf7 {[%emt 0:00:08]} 49. Rf3+ {[%emt 0:00:11]} Ke7 {[%emt 0:00:05]} 50. a4 {[%emt 0:00:07]} Bg7 {[%emt 0:00:14]} 51. Kd2 {[%emt 0:00:43]} Kd6 {[%emt 0:00:09]} 52. Ke2 {[%emt 0:00:03]} Bd4 {[%emt 0:00:21]} 53. Kf1 {[%emt 0:00:40]} Kd5 {[%emt 0:00:36]} 54. Kg2 {[%emt 0:00:02]} Ke4 {[%emt 0:00:17]} 55. Rg3 {[%emt 0:00:30]} Be3 {[%emt 0:00:57]} 56. Rg7 {[%emt 0:00:13]} h6 {[%emt 0:00:18]} 57. Kg3 {[%emt 0:00:30]} Ra5 {[%emt 0:00:36]} 58. Rg4+ {[%emt 0:00:05]} Kd3 {[%emt 0:00:02]} 59. Rb4 {[%emt 0:00:25]} Bd4 {[%emt 0:00:06]} 60. Kg4 {[%emt 0:00:38]} Kc3 {[%emt 0:00:24]} 61. Rb5 {[%emt 0:00:14]} Rxa4 {[%emt 0:00:01]} 62. Kh5 {[%emt 0:00:02]} Be3 {[%emt 0:00:05]} 63. Rd5 {[%emt 0:00:02]} Bd2 {[%emt 0:00:05]} 64. Kg6 {[%emt 0:00:05]} Kc2 {[%emt 0:00:11]} 65. Kh5 {[%emt 0:00:37]} Kd1 {[%emt 0:00:04]} 66. Re5 {[%emt 0:00:01]} Ra3 {[%emt 0:00:08]} 67. Kg4 {[%emt 0:00:10]} Be3 {[%emt 0:00:09]} 68. h4 {[%emt 0:00:10]} Ke2 {[%emt 0:00:02]} 69. Re4 {[%emt 0:00:07]} Ra8 {[%emt 0:00:11]} 70. Re6 {[%emt 0:00:08]} Rg8+ {[%emt 0:00:09]} 71. Kh3 {[%emt 0:00:07]} Kf3 {[%emt 0:00:05]} 72. Ra6 {[%emt 0:00:21]} Rg3+ {[%emt 0:00:12]} 73. Kh2 {[%emt 0:00:01]} Rg4 {[%emt 0:00:47]} 74. Kh3 {[%emt 0:00:01]} Rf4 {[%emt 0:00:03]} 75. Rxh6 {[%emt 0:00:06]} Ra4 {[%emt 0:00:12]} 76. Rc6 {[%emt 0:00:22]} Ra1 {[%emt 0:00:07]} 77. Rc2 {[%emt 0:00:14]} Rh1+ {[%emt 0:00:06]} 78. Rh2 {[%emt 0:00:01]} Rg1 {[%emt 0:00:01]} 79. Ra2 {[%emt 0:00:08]} Rg3+ {[%emt 0:00:20]} 80. Kh2 {[%emt 0:00:02]} Bg1+ {[%emt 0:00:02]} 81. Kh1 {[%emt 0:00:02]} Bc5 {[%emt 0:00:06]} 82. Rc2 {[%emt 0:00:03]} Bd4 {[%emt 0:00:06]} 83. Rd2 {[%emt 0:00:17]} Be3 {[%emt 0:00:07]} 84. Ra2 {[%emt 0:00:01]} Rg4 {[%emt 0:00:12]} 85. h5 {[%emt 0:00:05]} Bf4 {[%emt 0:00:07]} 86. Ra3+ {[%emt 0:00:03]} Ke4 {[%emt 0:00:01]} 87. Rh3 {[%emt 0:00:03]} Bh6 {[%emt 0:00:02]} 88. Kh2 {[%emt 0:00:11]} Kf5 {[%emt 0:00:04]} 89. Rb3 {[%emt 0:00:03]} Rh4+ {[%emt 0:00:06]} 90. Kg2 {[%emt 0:00:04]} Ra4 {[%emt 0:00:02]} 91. Kh3 {[%emt 0:00:02]} Bg5 {[%emt 0:00:09]} 92. Rf3+ {[%emt 0:00:11]} Bf4 {[%emt 0:00:03]} 93. Rb3 {[%emt 0:00:01]} Ra2 {[%emt 0:00:03]} 94. Rb5+ {[%emt 0:00:02]} Be5 {[%emt 0:00:01]} 0-1

[Event "HUN-ch Rapid 2018"]
[Site "Ajka"]
[Date "2018.07.21"]
[Round "10"]
[White "Deak, Sandor"]
[Black "Czupor, Attila"]
[Result "1-0"]
[ECO "D10"]
[WhiteElo "2335"]
[BlackElo "2045"]
[Annotator "NA"]
[PlyCount "149"]
[EventDate "2018.07.20"]
[EventType "swiss"]
[EventCountry "HUN"]
[SourceTitle "playchess.com"]
[Source "ChessBase"]
[SourceQuality "1"]
[TimeControl "1200+5"]

1. d4 {[%emt 0:00:06]} d5 {[%emt 0:00:01]} 2. c4 {[%emt 0:00:01]} c6 {[%emt 0:00:02]} 3. cxd5 {[%emt 0:00:01]} cxd5 {[%emt 0:00:01]} 4. Nc3 {[%emt 0:00:01]} Nf6 {[%emt 0:00:01]} 5. Bf4 {[%emt 0:00:02]} Nc6 {[%emt 0:00:04]} 6. e3 {[%emt 0:00:01]} a6 {[%emt 0:00:03]} 7. Bd3 {[%emt 0:00:01]} Bg4 {[%emt 0:00:24]} 8. Nge2 {[%emt 0:00:01]} e6 {[%emt 0:00:11]} 9. O-O {[%emt 0:00:27]} Bd6 {[%emt 0:00:22]} 10. f3 {[%emt 0:00:46]} Bh5 {[%emt 0:00:03]} 11. Rc1 {[%emt 0:01:55]} O-O {[%emt 0:00:18]} 12. Na4 {[%emt 0:00:09]} e5 {[%emt 0:02:40]} 13. dxe5 {[%emt 0:00:20]} Nxe5 {[%emt 0:00:05]} 14. Bb1 {[%emt 0:01:01]} b5 {[%emt 0:01:13]} 15. Nac3 {[%emt 0:03:01]} Nc4 {[%emt 0:00:35]} 16. Qd4 {[%emt 0:00:06]} Nxb2 {[%emt 0:02:02]} 17. Bxd6 {[%emt 0:03:44]} Qxd6 {[%emt 0:00:07]} 18. Nxb5 {[%emt 0:00:15]} axb5 {[%emt 0:00:24]} 19. Qxb2 {[%emt 0:00:01]} b4 {[%emt 0:00:25]} 20. Nd4 {[%emt 0:00:56]} Bg6 {[%emt 0:00:38]} 21. Rfe1 {[%emt 0:00:41]} Rfc8 {[%emt 0:00:22]} 22. Nf5 {[%emt 0:03:38]} Qd7 {[%emt 0:02:33]} 23. g4 {[%emt 0:00:09]} h5 {[%emt 0:00:54]} 24. h3 {[%emt 0:00:03]} Rxc1 {[%emt 0:01:45]} 25. Rxc1 {[%emt 0:00:04]} Bxf5 {[%emt 0:00:04]} 26. Bxf5 {[%emt 0:00:49]} Qd6 {[%emt 0:01:50]} 27. Bb1 {[%emt 0:00:03]} hxg4 {[%emt 0:00:43]} 28. hxg4 {[%emt 0:00:02]} Nd7 {[%emt 0:00:28]} 29. Kg2 {[%emt 0:01:35]} Ne5 {[%emt 0:00:50]} 30. Qd4 {[%emt 0:00:18]} Ng6 {[%emt 0:01:58]} 31. f4 {[%emt 0:00:30]} Re8 {[%emt 0:00:54]} 32. Kf3 {[%emt 0:00:28]} Qe6 {[%emt 0:00:30]} 33. Bxg6 {[%emt 0:00:43]} fxg6 {[%emt 0:00:06]} 34. Rc5 {[%emt 0:00:04]} Qe4+ {[%emt 0:00:07]} 35. Qxe4 {[%emt 0:00:03]} dxe4+ {[%emt 0:00:01]} 36. Kg3 {[%emt 0:00:02]} Ra8 {[%emt 0:00:00]} 37. Rc4 {[%emt 0:00:01]} Rxa2 {[%emt 0:00:03]} 38. Rxb4 {[%emt 0:00:01]} Kf7 {[%emt 0:00:02]} 39. Rxe4 {[%emt 0:00:01]} Ra3 {[%emt 0:00:02]} 40. Kf3 {[%emt 0:00:01]} Rb3 {[%emt 0:00:01]} 41. Ra4 {[%emt 0:00:01]} Rb1 {[%emt 0:00:03]} 42. Ra7+ {[%emt 0:00:06]} Kf8 {[%emt 0:00:11]} 43. g5 {[%emt 0:00:17]} Rb3 {[%emt 0:00:03]} 44. Rd7 {[%emt 0:00:02]} Rb4 {[%emt 0:00:03]} 45. Rd4 {[%emt 0:00:07]} Rb3 {[%emt 0:00:12]} 46. Ke4 {[%emt 0:00:01]} Rb5 {[%emt 0:00:05]} 47. Rd5 {[%emt 0:00:01]} Rb3 {[%emt 0:00:03]} 48. Kd4 {[%emt 0:00:04]} Rb4+ {[%emt 0:00:01]} 49. Ke5 {[%emt 0:00:01]} Ke7 {[%emt 0:00:06]} 50. Ra5 {[%emt 0:00:02]} Rb7 {[%emt 0:00:02]} 51. e4 {[%emt 0:00:04]} Rc7 {[%emt 0:00:04]} 52. Ra6 {[%emt 0:00:38]} Kf7 {[%emt 0:00:18]} 53. f5 {[%emt 0:00:03]} gxf5 {[%emt 0:00:03]} 54. g6+ {[%emt 0:00:07]} Ke7 {[%emt 0:00:06]} 55. Kxf5 {[%emt 0:00:02]} Rc5+ {[%emt 0:00:02]} 56. e5 {[%emt 0:00:01]} Rc7 {[%emt 0:00:01]} 57. Ra8 {[%emt 0:00:04]} Rc1 {[%emt 0:00:07]} 58. Ra7+ {[%emt 0:00:01]} Kf8 {[%emt 0:00:02]} 59. Ke6 {[%emt 0:00:04]} Rc8 {[%emt 0:00:09]} 60. Rf7+ {[%emt 0:00:04]} Kg8 {[%emt 0:00:04]} 61. Rd7 {[%emt 0:00:01]} Kf8 {[%emt 0:00:05]} 62. Kd6 {[%emt 0:00:03]} Ra8 {[%emt 0:00:09]} 63. Rf7+ {[%emt 0:00:01]} Kg8 {[%emt 0:00:04]} 64. Rc7 {[%emt 0:00:02]} Kf8 {[%emt 0:00:13]} 65. Kd7 {[%emt 0:00:02]} Re8 {[%emt 0:00:04]} 66. Rc3 {[%emt 0:00:20]} Re7+ {[%emt 0:00:09]} 67. Kd6 {[%emt 0:00:02]} Re8 {[%emt 0:00:02]} 68. Rf3+ {[%emt 0:00:01]} Kg8 {[%emt 0:00:01]} 69. e6 {[%emt 0:00:02]} Ra8 {[%emt 0:00:01]} 70. e7 {[%emt 0:00:04]} Ra6+ {[%emt 0:00:01]} 71. Kd5 {[%emt 0:00:02]} Ra5+ {[%emt 0:00:01]} 72. Kc6 {[%emt 0:00:01]} Ra8 {[%emt 0:00:16]} 73. Rd3 {[%emt 0:00:01]} Rc8+ {[%emt 0:00:11]} 74. Kb7 {[%emt 0:00:02]} Re8 {[%emt 0:00:04]} 75. Rd8 {[%emt 0:00:01]} 1-0

[Event "HUN-ch Rapid 2018"]
[Site "Ajka"]
[Date "2018.07.21"]
[Round "10"]
[White "Csonka, Balazs"]
[Black "Szukics, Adam"]
[Result "1-0"]
[ECO "E06"]
[WhiteElo "2311"]
[BlackElo "2010"]
[Annotator "NA"]
[PlyCount "81"]
[EventDate "2018.07.20"]
[EventType "swiss"]
[EventCountry "HUN"]
[SourceTitle "playchess.com"]
[Source "ChessBase"]
[SourceQuality "1"]
[TimeControl "1200+5"]

1. d4 {[%emt 0:00:03]} d5 {[%emt 0:00:01]} 2. Nf3 {[%emt 0:00:02]} Nf6 {[%emt 0:00:02]} 3. c4 {[%emt 0:00:02]} e6 {[%emt 0:00:01]} 4. g3 {[%emt 0:00:28]} Be7 {[%emt 0:00:02]} 5. Bg2 {[%emt 0:00:03]} O-O {[%emt 0:00:10]} 6. O-O {[%emt 0:04:31]} dxc4 {[%emt 0:00:02]} 7. Ne5 {[%emt 0:00:02]} Nc6 {[%emt 0:00:36]} 8. Nxc6 {[%emt 0:00:03]} bxc6 {[%emt 0:00:06]} 9. e3 {[%emt 0:00:02]} Rb8 {[%emt 0:00:41]} 10. Qa4 {[%emt 0:01:03]} Rb6 {[%emt 0:04:43]} 11. Nd2 {[%emt 0:02:22]} c5 {[%emt 0:01:22]} 12. dxc5 {[%emt 0:01:12]} Bxc5 {[%emt 0:00:06]} 13. Nxc4 {[%emt 0:00:23]} Rb4 {[%emt 0:01:35]} 14. Qc2 {[%emt 0:00:03]} Ba6 {[%emt 0:03:49]} 15. b3 {[%emt 0:00:29]} Bxc4 {[%emt 0:00:31]} 16. bxc4 {[%emt 0:00:02]} Rb6 {[%emt 0:00:09]} 17. Bb2 {[%emt 0:00:45]} Qe7 {[%emt 0:00:05]} 18. Rab1 {[%emt 0:01:50]} Rfb8 {[%emt 0:00:08]} 19. Bc3 {[%emt 0:00:55]} Bb4 {[%emt 0:01:21]} 20. Ba1 {[%emt 0:00:55]} Ne8 {[%emt 0:00:12]} 21. Rfd1 {[%emt 0:00:45]} Bc5 {[%emt 0:00:26]} 22. Bc3 {[%emt 0:02:13]} Bb4 {[%emt 0:00:54]} 23. Bxb4 {[%emt 0:00:09]} Rxb4 {[%emt 0:00:01]} 24. Bc6 {[%emt 0:00:38]} Nf6 {[%emt 0:00:36]} 25. c5 {[%emt 0:01:02]} g6 {[%emt 0:03:20]} 26. Rxb4 {[%emt 0:00:14]} Rxb4 {[%emt 0:00:01]} 27. Qc3 {[%emt 0:00:06]} Rb8 {[%emt 0:00:21]} 28. h3 {[%emt 0:01:02]} Rd8 {[%emt 0:00:19]} 29. Rb1 {[%emt 0:00:42]} h5 {[%emt 0:00:02]} 30. Rb7 {[%emt 0:00:13]} h4 {[%emt 0:00:20]} 31. g4 {[%emt 0:00:01]} Nd5 {[%emt 0:00:26]} 32. Bxd5 {[%emt 0:00:10]} Rxd5 {[%emt 0:00:02]} 33. Rxa7 {[%emt 0:00:06]} e5 {[%emt 0:00:05]} 34. c6 {[%emt 0:00:06]} Rc5 {[%emt 0:00:06]} 35. Qa3 {[%emt 0:00:06]} e4 {[%emt 0:00:07]} 36. Rxc7 {[%emt 0:00:05]} Qxc7 {[%emt 0:00:04]} 37. Qxc5 {[%emt 0:00:01]} Kh7 {[%emt 0:00:05]} 38. Qc4 {[%emt 0:00:09]} Qe5 {[%emt 0:00:04]} 39. c7 {[%emt 0:00:03]} Qa1+ {[%emt 0:00:03]} 40. Kg2 {[%emt 0:00:04]} Qd1 {[%emt 0:00:03]} 41. Qxf7+ {[%emt 0:00:02]} 1-0